bitfinex/quotes_SOLUSD_20241116
["timestamp","ask_amount","ask_price","bid_price","bid_amount"]
[1731749105357,13.35238331,218.32,218.25,20.22658331]
[1731749105959,4.5805,218.32,218.25,20.22658331]
[1731749106134,13.35238331,218.32,218.25,20.22658331]
[1731749106647,13.35258331,218.31,218.25,11.4547]
[1731749106841,8.77188331,218.3,218.25,11.4547]
[1731749107038,8.77188331,218.3,218.24,16.1932]
[1731749107247,8.77188331,218.28,218.21,8.77188331]
[1731749107628,8.77188331,218.27,218.2,27.29331811]
[1731749107824,8.77188331,218.26,218.2,27.29331811]
[1731749108027,8.77188331,218.27,218.2,27.29331811]
[1731749108943,13.35348331,218.27,218.2,27.29331811]
[1731749109749,4.5806,218.31,218.21,8.77188331]
[1731749110152,8.77188331,218.27,218.2,31.87621811]
[1731749111131,4.5813,218.28,218.21,8.77188331]
[1731749111437,13.35318331,218.28,218.21,8.77188331]
[1731749111639,8.77188331,218.25,218.2,0.5151348]
[1731749112229,8.77188331,218.23,218.2,0.5151348]
[1731749112837,13.35418331,218.23,218.2,0.5151348]
[1731749113131,4.5823,218.23,218.2,0.5151348]
[1731749113537,13.35378331,218.25,218.2,0.5151348]
[1731749114149,8.77188331,218.24,218.2,0.5151348]
[1731749114532,8.77188331,218.23,218.2,0.5151348]
[1731749115041,8.77188331,218.21,218.2,0.5151348]
[1731749115243,8.86555793,218.21,218.2,0.5151348]
[1731749116738,13.44825793,218.21,218.2,0.5151348]
[1731749117148,13.44825793,218.21,218.12,4.5845]
[1731749117337,8.77188331,218.19,218.12,13.35638331]
[1731749117836,4.67637462,218.21,218.13,8.77188331]
[1731749118036,8.77188331,218.19,218.13,8.77188331]
[1731749118648,8.77188331,218.16,218.08,22.3301]
[1731749118866,8.77188331,218.16,218.09,8.77188331]
[1731749119536,8.77188331,218.17,218.1,8.77188331]
[1731749119954,4.5837,218.16,218.1,8.77188331]
[1731749120163,4.5837,218.16,218.08,22.3301]
[1731749120338,13.35558331,218.16,218.09,8.77188331]
[1731749120762,8.77188331,218.15,218.09,8.77188331]
[1731749122036,8.77188331,218.13,218.05,4.5859]
[1731749122258,8.77188331,218.13,218.07,8.77188331]
[1731749122438,4.5843,218.14,218.05,4.5859]
[1731749122638,8.77188331,218.15,218.08,8.77188331]
[1731749122859,8.77188331,218.15,218.09,8.77188331]
[1731749123059,4.5836,218.17,218.09,8.77188331]
[1731749123242,8.77188331,218.15,218.09,8.77188331]
[1731749123664,8.77188331,218.15,218.08,8.77188331]
[1731749124257,13.35588331,218.15,218.06,28.362584]
[1731749124451,13.35588331,218.15,218.08,8.77188331]
[1731749125059,8.77188331,218.14,218.07,8.77188331]
[1731749126065,13.35588331,218.15,218.09,8.77188331]
[1731749126952,13.35588331,218.15,218.08,8.77188331]
[1731749127268,8.77188331,218.14,218.07,8.77188331]
[1731749127737,13.35588331,218.15,218.08,8.77188331]
[1731749128167,8.77188331,218.14,218.07,8.77188331]
[1731749128538,8.77188331,218.14,218.05,16.0512]
[1731749128761,8.77188331,218.14,218.07,8.77188331]
[1731749129146,8.77188331,218.13,218.06,8.77188331]
[1731749129351,8.77188331,218.13,218.05,11.4652]
[1731749129666,13.35618331,218.14,218.07,8.77188331]
[1731749130162,8.77188331,218.13,218.05,11.4652]
[1731749130351,8.77188331,218.13,218.06,8.77188331]
[1731749130553,20.0,218.12,218.06,8.77188331]
[1731749131062,28.77188331,218.12,218.05,8.77188331]
[1731749131456,4.5848,218.11,218.05,8.77188331]
[1731749131658,4.5848,218.11,218.06,8.77188331]
[1731749131840,0.1,218.18,218.09,8.77188331]
[1731749132041,8.77188331,218.17,218.1,8.77188331]
[1731749132247,22.97460233,218.22,218.11,8.77188331]
[1731749132470,8.77188331,218.18,218.11,8.77188331]
[1731749134145,22.97460233,218.22,218.13,8.77188331]
[1731749134457,4.5827,218.21,218.15,8.77188331]
[1731749134643,4.5827,218.21,218.1,23.0182]
[1731749134852,4.5827,218.21,218.15,8.77188331]
[1731749135045,13.35458331,218.21,218.14,8.77188331]
[1731749135659,20.0,218.2,218.14,8.77188331]
[1731749136563,7.12030233,218.22,218.11,11.4618]
[1731749136770,8.77188331,218.25,218.17,8.77188331]
[1731749136959,8.77188331,218.24,218.17,8.77188331]
[1731749137751,8.77188331,218.25,218.17,8.77188331]
[1731749137957,8.77188331,218.26,218.19,8.77188331]
[1731749138169,4.5821,218.24,218.2,8.77188331]
[1731749138477,4.5821,218.24,218.19,8.77188331]
[1731749138671,4.5821,218.24,218.2,8.77188331]
[1731749138998,8.77188331,218.29,218.22,8.77188331]
[1731749139149,4.5808,218.3,218.24,8.77188331]
[1731749139350,4.5808,218.3,218.25,8.77188331]
[1731749139868,4.5808,218.3,218.24,8.77188331]
[1731749140671,24.5808,218.3,218.24,8.77188331]
[1731749141253,4.5808,218.3,218.25,8.77188331]
[1731749141554,8.77188331,218.35,218.28,8.77188331]
[1731749141949,8.77188331,218.33,218.26,8.77188331]
[1731749142261,8.77188331,218.31,218.24,8.77188331]
[1731749142662,8.77188331,218.31,218.21,11.4568]
[1731749142663,13.35228331,218.32,218.25,8.77188331]
[1731749144071,8.77188331,218.29,218.22,8.77188331]
[1731749144280,8.77188331,218.28,218.21,20.22868331]
[1731749144457,8.77188331,218.27,218.21,11.4568]
[1731749144658,8.77188331,218.28,218.21,20.22868331]
[1731749144865,8.77188331,218.28,218.21,11.4568]
[1731749145071,8.77188331,218.28,218.21,20.22868331]
[1731749145577,8.77188331,218.28,218.21,11.4568]
[1731749145778,13.35318331,218.28,218.21,20.22868331]
[1731749145956,13.35318331,218.28,218.19,15.2197]
[1731749145957,8.77188331,218.26,218.19,8.77188331]
[1731749146161,8.77188331,218.27,218.2,8.77188331]
[1731749146366,4.5813,218.28,218.21,8.77188331]
[1731749146367,13.35318331,218.28,218.21,8.77188331]
[1731749147967,8.77188331,218.26,218.19,8.77188331]
[1731749148281,8.77188331,218.27,218.2,8.77188331]
[1731749148861,13.35338331,218.27,218.2,8.77188331]
[1731749149059,4.5815,218.27,218.21,8.77188331]
[1731749149580,13.35338331,218.27,218.2,8.77188331]
[1731749150084,8.77188331,218.25,218.18,13.35508331]
[1731749150576,0.09367462,218.25,218.18,13.35508331]
[1731749150780,0.09367462,218.25,218.17,20.23078331]
[1731749150781,8.77188331,218.24,218.17,20.23078331]
[1731749151280,8.77188331,218.24,218.17,24.81428331]
[1731749151989,8.86555793,218.24,218.17,24.81428331]
[1731749152466,0.09367462,218.24,218.19,8.77188331]
[1731749152878,0.09367462,218.26,218.19,8.77188331]
[1731749155077,161.7,218.3,218.25,8.77188331]
[1731749155273,35.6581491,218.35,218.27,8.77188331]
[1731749155274,4.5798,218.35,218.27,8.77188331]
[1731749155567,8.77188331,218.34,218.27,8.77188331]
[1731749156472,13.35168331,218.35,218.28,8.77188331]
[1731749156778,0.09367462,218.34,218.28,8.77188331]
[1731749157682,0.09367462,218.34,218.29,8.77188331]
[1731749158884,0.09367462,218.34,218.28,8.77188331]
[1731749159179,0.09367462,218.34,218.3,8.77188331]
[1731749159385,24.5793,218.37,218.3,8.77188331]
[1731749159977,0.09367462,218.36,218.3,8.77188331]
[1731749160483,13.44525793,218.36,218.26,11.4542]
[1731749160684,8.77188331,218.33,218.26,20.22608331]
[1731749160983,8.77188331,218.3,218.22,13.35428331]
[1731749161286,0.09367462,218.28,218.21,20.22848331]
[1731749161467,0.09367462,218.26,218.2,15.18298331]
[1731749161883,8.86555793,218.26,218.2,6.4111]
[1731749162384,8.77188331,218.26,218.2,6.4111]
[1731749162682,8.77188331,218.29,218.21,8.77188331]
[1731749162989,8.86555793,218.27,218.2,31.22308331]
[1731749163370,8.86555793,218.27,218.2,22.4512]
[1731749163581,8.86555793,218.27,218.2,17.8684]
[1731749163886,8.77188331,218.26,218.2,17.8684]
[1731749164068,8.77188331,218.26,218.2,11.4573]
[1731749164581,13.35358331,218.26,218.2,11.4573]
[1731749164781,8.86555793,218.25,218.17,25.06168331]
[1731749165396,8.77188331,218.23,218.17,16.2898]
[1731749165787,4.5817,218.26,218.15,31.22668331]
[1731749165788,8.77188331,218.22,218.15,22.4548]
[1731749166285,8.77188331,218.22,218.15,17.871]
[1731749166493,4.5827,218.21,218.15,17.871]
[1731749166681,0.09367462,218.2,218.12,4.5844]
[1731749166992,8.77188331,218.19,218.12,4.5844]
[1731749167198,8.77188331,218.18,218.12,4.5844]
[1731749167390,8.77188331,218.19,218.12,4.5844]
[1731749168090,13.35498331,218.19,218.12,4.5844]
[1731749168693,8.77188331,218.18,218.12,4.5844]
[1731749168899,13.86396683,218.18,218.12,4.5844]
[1731749171508,13.86396683,218.19,218.12,18.44836683]
[1731749171800,13.86396683,218.19,218.12,18.41068302]
[1731749172480,13.86396683,218.18,218.11,30.15376683]
[1731749172811,13.86396683,218.17,218.11,16.2898]
[1731749173879,4.5834,218.18,218.11,20.8745]
[1731749174098,0.09367462,218.18,218.11,34.73846683]
[1731749174397,168.88095285,218.24,218.16,13.86396683]
[1731749174600,168.88095285,218.24,218.11,32.3366]
[1731749174601,161.7,218.24,218.18,13.86396683]
[1731749174807,13.86396683,218.28,218.21,13.86396683]
[1731749174981,18.44506683,218.29,218.21,13.86396683]
[1731749175186,13.86396683,218.29,218.22,13.86396683]
[1731749175687,18.44516683,218.29,218.22,13.86396683]
[1731749175996,7.18095285,218.32,218.24,13.86396683]
[1731749176183,0.09367462,218.31,218.24,13.86396683]
[1731749176388,13.86396683,218.32,218.24,13.86396683]
[1731749176983,4.5803,218.33,218.27,13.86396683]
[1731749177201,13.86396683,218.34,218.27,13.86396683]
[1731749177398,13.86396683,218.38,218.3,13.86396683]
[1731749177603,18.44276683,218.4,218.32,13.86396683]
[1731749177806,13.86396683,218.4,218.32,13.86396683]
[1731749178011,13.86396683,218.4,218.33,13.86396683]
[1731749178693,18.44256683,218.41,218.33,13.86396683]
[1731749179098,13.95764145,218.4,218.33,13.86396683]
[1731749179400,13.86396683,218.39,218.32,13.86396683]
[1731749180386,13.86396683,218.39,218.31,29.89616683]
[1731749180587,13.86396683,218.38,218.31,16.0322]
[1731749181218,13.86396683,218.34,218.29,6.2902]
[1731749181591,0.09367462,218.34,218.29,6.2902]
[1731749182606,13.86396683,218.35,218.29,6.2902]
[1731749182900,13.86396683,218.37,218.3,13.86396683]
[1731749183092,13.86396683,218.36,218.29,24.73506683]
[1731749184510,13.95764145,218.35,218.29,6.2902]
[1731749184809,13.95764145,218.34,218.29,6.2902]
[1731749185401,0.09367462,218.34,218.29,6.2902]
[1731749185607,13.95764145,218.34,218.27,13.86396683]
[1731749186111,13.86396683,218.33,218.26,18.44546683]
[1731749186811,18.53764145,218.34,218.27,13.86396683]
[1731749188798,4.67367462,218.34,218.28,13.86396683]
[1731749189004,13.86396683,218.33,218.26,13.86396683]
[1731749189205,18.44416683,218.33,218.26,13.86396683]
[1731749190421,18.44416683,218.33,218.26,18.44556683]
[1731749192497,13.86396683,218.32,218.26,4.5816]
[1731749192810,18.44416683,218.33,218.26,18.44556683]
[1731749193617,13.86396683,218.33,218.27,13.86396683]
[1731749193809,13.86396683,218.35,218.28,13.86396683]
[1731749194115,13.86396683,218.33,218.27,13.86396683]
[1731749194502,13.86396683,218.34,218.27,13.86396683]
[1731749194824,8.85986319,218.34,218.27,13.44126319]
[1731749195213,8.85986319,218.33,218.27,4.5814]
[1731749196617,8.85986319,218.34,218.27,13.44126319]
[1731749199532,13.43996319,218.34,218.27,13.44126319]
[1731749199720,8.85986319,218.33,218.27,4.5814]
[1731749200531,8.85986319,218.33,218.27,8.85986319]
[1731749201723,8.85986319,218.33,218.26,24.89556319]
[1731749202108,13.43996319,218.34,218.27,8.85986319]
[1731749202727,8.85986319,218.33,218.26,24.89556319]
[1731749205110,8.85986319,218.32,218.26,16.0357]
[1731749205311,8.85986319,218.33,218.26,24.89556319]
[1731749206117,8.85986319,218.33,218.26,20.31406319]
[1731749206511,8.85986319,218.33,218.26,11.4542]
[1731749206712,8.85986319,218.33,218.26,20.31406319]
[1731749206915,8.85986319,218.34,218.27,8.85986319]
[1731749207736,13.43986319,218.34,218.27,8.85986319]
[1731749209115,4.5796,218.36,218.29,8.85986319]
[1731749209323,8.85986319,218.39,218.31,8.85986319]
[1731749209516,8.85986319,218.38,218.31,8.85986319]
[1731749210432,8.85986319,218.38,218.27,16.0351]
[1731749210433,4.5793,218.37,218.29,4.5809]
[1731749210634,13.43916319,218.37,218.3,8.85986319]
[1731749211719,4.5793,218.37,218.31,8.85986319]
[1731749212126,4.5793,218.37,218.3,16.1708]
[1731749212625,7.18095285,218.42,218.34,8.85986319]
[1731749212826,50.02581554,218.44,218.34,8.85986319]
[1731749212827,4.5786,218.41,218.34,8.85986319]
[1731749213025,13.43846319,218.41,218.34,8.85986319]
[1731749213528,8.85986319,218.4,218.32,6.4312]
[1731749213726,13.43866319,218.4,218.33,8.85986319]
[1731749214127,13.43866319,218.4,218.32,19.87126319]
[1731749214326,8.85986319,218.39,218.32,15.29106319]
[1731749214536,8.85986319,218.38,218.32,6.4312]
[1731749215834,4.5793,218.38,218.32,6.4312]
[1731749216629,33.43816319,218.42,218.35,8.85986319]
[1731749216830,33.43816319,218.42,218.34,8.85986319]
[1731749217735,8.85986319,218.41,218.33,13.43996319]
[1731749218042,13.43816319,218.42,218.35,8.85986319]
[1731749218825,4.5783,218.42,218.35,8.85986319]
[1731749219026,13.43816319,218.42,218.35,8.85986319]
[1731749219615,13.43816319,218.42,218.34,13.43976319]
[1731749220246,4.5783,218.42,218.36,8.85986319]
[1731749220625,4.5783,218.42,218.35,8.85986319]
[1731749220943,4.5783,218.42,218.36,8.85986319]
[1731749221844,4.5783,218.42,218.37,8.85986319]
[1731749222836,4.5779,218.44,218.37,13.43916319]
[1731749223316,11.75885285,218.44,218.37,13.43916319]
[1731749223736,4.5779,218.44,218.37,13.43916319]
[1731749224140,11.75885285,218.44,218.37,13.43916319]
[1731749224336,11.75885285,218.44,218.39,8.85986319]
[1731749224525,4.5779,218.44,218.39,8.85986319]
[1731749224844,7.18095285,218.45,218.39,8.85986319]
[1731749225039,20.61851604,218.45,218.38,8.85986319]
[1731749225241,7.18095285,218.44,218.38,8.85986319]
[1731749225448,20.61851604,218.45,218.38,8.85986319]
[1731749225643,11.75865285,218.45,218.38,8.85986319]
[1731749225854,11.75865285,218.45,218.39,8.85986319]
[1731749226146,7.18095285,218.43,218.38,13.43896319]
[1731749226344,7.18095285,218.43,218.38,4.5791]
[1731749226554,7.18095285,218.43,218.38,13.43896319]
[1731749228425,7.18095285,218.43,218.36,16.0284]
[1731749228631,7.18095285,218.43,218.38,8.85986319]
[1731749229943,20.09367462,218.38,218.3,21.6094]
[1731749230229,8.85986319,218.36,218.3,21.6094]
[1731749230643,16.04082221,218.37,218.3,21.6094]
[1731749231246,4.5795,218.36,218.3,30.46926319]
[1731749231448,7.18095902,218.37,218.32,8.85986319]
[1731749231634,7.18095902,218.38,218.31,23.776884]
[1731749231946,7.18095902,218.38,218.32,8.85986319]
[1731749232446,7.18095902,218.38,218.33,8.85986319]
[1731749232638,11.76015902,218.38,218.33,8.85986319]
[1731749233452,4.5792,218.38,218.33,8.85986319]
[1731749234128,7.18095902,218.39,218.34,8.85986319]
[1731749234332,11.75985902,218.4,218.33,23.776884]
[1731749234653,11.75985902,218.4,218.35,23.776884]
[1731749234828,4.5789,218.4,218.35,23.776884]
[1731749235558,4.5789,218.4,218.35,8.85986319]
[1731749235754,7.18095902,218.41,218.34,23.776884]
[1731749235755,7.18095902,218.41,218.39,8.85986319]
[1731749236053,11.75905902,218.43,218.38,8.85986319]
[1731749236231,11.75905902,218.43,218.35,11.4495]
[1731749236428,20.61892221,218.43,218.35,20.30936319]
[1731749236624,7.18095902,218.42,218.35,20.30936319]
[1731749236825,4.5785,218.41,218.35,20.30936319]
[1731749237240,7.18095902,218.43,218.38,8.85986319]
[1731749237730,7.18095902,218.46,218.43,23.776884]
[1731749238035,7.18095902,218.47,218.43,32.63674719]
[1731749238434,11.75795902,218.49,218.43,32.63674719]
[1731749238847,7.18095902,218.49,218.46,8.85986319]
[1731749239053,7.18095902,218.5,218.46,8.85986319]
[1731749239261,11.75745902,218.51,218.46,8.85986319]
[1731749239640,11.75745902,218.51,218.47,23.776884]
[1731749239956,11.75745902,218.51,218.46,23.776884]
[1731749240356,8.85986319,218.47,218.39,31.8199]
[1731749240530,8.85986319,218.45,218.39,15.7941]
[1731749241135,8.85986319,218.44,218.39,15.7941]
[1731749241531,8.85986319,218.43,218.39,15.7941]
[1731749242039,8.85986319,218.44,218.39,15.7941]
[1731749242640,8.85986319,218.43,218.38,6.0366]
[1731749242841,8.85986319,218.42,218.38,6.0366]
[1731749243055,4.5777,218.45,218.38,6.0366]
[1731749243240,8.85986319,218.43,218.38,6.0366]
[1731749244453,13.43786319,218.44,218.38,6.0366]
[1731749245871,8.85986319,218.43,218.38,6.0366]
[1731749246160,13.43786319,218.44,218.38,6.0366]
[1731749246575,24.5775,218.46,218.39,32.63674719]
[1731749246939,8.85986319,218.45,218.39,23.776884]
[1731749247462,8.85986319,218.44,218.38,6.0366]
[1731749247666,31.75845902,218.46,218.38,14.89646319]
[1731749247838,8.85986319,218.45,218.38,14.89646319]
[1731749248241,13.43736319,218.46,218.39,32.63674719]
[1731749248558,4.5775,218.46,218.4,8.85986319]
[1731749248755,11.75805902,218.48,218.41,32.63674719]
[1731749248955,16.04082221,218.5,218.43,8.85986319]
[1731749249169,4.5768,218.5,218.44,8.85986319]
[1731749249549,8.85986319,218.49,218.42,32.63674719]
[1731749249945,13.43676319,218.49,218.42,32.63674719]
[1731749250262,4.5769,218.49,218.42,32.63674719]
[1731749251052,8.85986319,218.45,218.41,15.4128]
[1731749251261,8.85986319,218.44,218.41,15.4128]
[1731749251638,8.85986319,218.45,218.41,15.4128]
[1731749251942,8.85986319,218.44,218.38,6.0366]
[1731749252342,4.5777,218.45,218.38,6.0366]
[1731749252565,8.85986319,218.44,218.38,6.0366]
[1731749253465,8.85986319,218.43,218.38,6.0366]
[1731749253767,8.85986319,218.42,218.38,6.0366]
[1731749254670,11.75815902,218.47,218.33,6.5636]
[1731749254671,8.85986319,218.39,218.33,6.5636]
[1731749254840,8.85986319,218.36,218.3,26.5275]
[1731749255048,8.85986319,218.34,218.3,26.5275]
[1731749255448,8.85986319,218.34,218.3,15.0759]
[1731749256947,13.84323623,218.34,218.3,15.0759]
[1731749257873,13.84323623,218.33,218.3,15.0759]
[1731749258168,13.84323623,218.34,218.3,15.0759]
[1731749258970,13.84323623,218.31,218.28,6.5636]
[1731749259273,13.84323623,218.29,218.25,26.5302]
[1731749259481,13.84323623,218.3,218.25,31.1121]
[1731749259975,20.09367462,218.35,218.25,31.1121]
[1731749260178,13.84323623,218.3,218.25,31.1121]
[1731749261278,13.84323623,218.29,218.25,16.0362]
[1731749262075,13.84323623,218.29,218.23,11.0302]
[1731749263084,13.84323623,218.27,218.2,11.457]
[1731749263268,13.84323623,218.28,218.21,53.65952023]
[1731749263784,13.84323623,218.29,218.21,53.65952023]
[1731749264159,13.84323623,218.3,218.23,37.62012023]
[1731749264368,13.84323623,218.32,218.24,13.84323623]
[1731749265278,13.84323623,218.31,218.24,4.5819]
[1731749265458,13.84323623,218.31,218.24,18.42513623]
[1731749267677,13.84323623,218.29,218.22,18.55102623]
[1731749267976,13.84323623,218.27,218.22,4.5823]
[1731749268772,33.84323623,218.35,218.22,4.5823]
[1731749268773,13.84323623,218.28,218.22,4.5823]
[1731749270867,13.84323623,218.29,218.22,4.5823]
[1731749271884,13.84323623,218.27,218.22,4.5823]
[1731749273176,13.84323623,218.29,218.22,18.42553623]
[1731749273687,24.5799,218.35,218.27,13.84323623]
[1731749273867,13.84323623,218.36,218.29,13.84323623]
[1731749274382,18.42283623,218.36,218.29,13.84323623]
[1731749275285,20.0,218.36,218.3,13.84323623]
[1731749275464,4.5792,218.38,218.3,13.84323623]
[1731749275465,18.42243623,218.38,218.3,13.84323623]
[1731749275980,13.84323623,218.37,218.3,13.84323623]
[1731749276588,18.42273623,218.37,218.3,13.84323623]
[1731749276783,18.42273623,218.37,218.29,16.0335]
[1731749276784,13.84323623,218.36,218.29,16.0335]
[1731749276971,4.5795,218.37,218.31,13.84323623]
[1731749277164,13.84323623,218.38,218.31,13.84323623]
[1731749277387,4.579,218.39,218.29,16.0335]
[1731749277388,24.579,218.39,218.32,13.84323623]
[1731749277686,4.579,218.39,218.32,13.84323623]
[1731749277869,13.84323623,218.4,218.33,37.62012023]
[1731749278074,13.84323623,218.41,218.34,13.84323623]
[1731749278467,13.84323623,218.41,218.34,20.18103623]
[1731749278667,13.84323623,218.41,218.34,24.76093623]
[1731749280283,13.84323623,218.4,218.34,10.9177]
[1731749280665,13.84323623,218.41,218.34,10.9177]
[1731749280897,8.85441858,218.41,218.34,10.9177]
[1731749281070,8.85441858,218.4,218.34,10.9177]
[1731749282003,8.85441858,218.41,218.34,10.9177]
[1731749282571,8.85441858,218.41,218.34,19.77211858]
[1731749282877,8.85441858,218.41,218.31,0.12549]
[1731749283077,8.85441858,218.41,218.33,32.63130258]
[1731749283999,13.43301858,218.41,218.33,32.63130258]
[1731749285073,8.85441858,218.37,218.32,11.4507]
[1731749285391,8.85441858,218.33,218.3,21.8441]
[1731749285593,24.5786,218.41,218.3,21.8441]
[1731749285779,8.85441858,218.35,218.3,21.8441]
[1731749285979,8.85441858,218.33,218.3,21.8441]
[1731749286185,8.85441858,218.31,218.25,10.8129]
[1731749286894,8.85441858,218.3,218.25,10.8129]
[1731749287399,8.85441858,218.31,218.25,10.8129]
[1731749287591,8.85441858,218.31,218.26,23.776884]
[1731749288300,8.85441858,218.3,218.26,23.776884]
[1731749289701,8.85441858,218.31,218.26,23.776884]
[1731749290579,8.85441858,218.28,218.24,15.6129]
[1731749290779,8.85441858,218.27,218.24,15.6129]
[1731749291377,8.85441858,218.28,218.24,15.6129]
[1731749291580,8.85441858,218.27,218.24,15.6129]
[1731749291997,8.85441858,218.27,218.23,23.776884]
[1731749292497,8.85441858,218.27,218.22,11.4562]
[1731749293293,8.85441858,218.27,218.2,4.5828]
[1731749294004,8.85441858,218.27,218.21,23.776884]
[1731749296392,13.43571858,218.28,218.21,37.21390258]
[1731749296698,8.85441858,218.3,218.23,23.776884]
[1731749297007,8.85441858,218.28,218.22,23.776884]
[1731749297990,13.43581858,218.28,218.22,23.776884]
[1731749299278,8.85441858,218.29,218.22,32.63130258]
[1731749299473,8.85441858,218.28,218.22,23.776884]
[1731749299780,8.85441858,218.29,218.22,32.63130258]
[1731749300382,4.5812,218.28,218.22,32.63130258]
[1731749301498,8.85441858,218.26,218.22,23.776884]
[1731749301794,20.09367462,218.31,218.22,23.776884]
[1731749302105,8.85441858,218.29,218.22,32.63130258]
[1731749302405,8.85441858,218.3,218.22,32.63130258]
[1731749302575,8.85441858,218.29,218.22,32.63130258]
[1731749302971,4.5812,218.29,218.21,8.85441858]
[1731749303210,8.85441858,218.28,218.22,23.776884]
[1731749303896,13.43561858,218.29,218.22,8.85441858]
[1731749304198,13.43561858,218.29,218.23,23.776884]
[1731749304589,8.85441858,218.3,218.23,60.00150258]
[1731749304784,4.5808,218.31,218.25,32.63130258]
[1731749305801,13.43521858,218.31,218.24,32.63130258]
[1731749306790,4.5808,218.31,218.25,8.85441858]
[1731749307485,8.85441858,218.3,218.24,28.358884]
[1731749307689,8.85441858,218.31,218.24,37.21330258]
[1731749308599,8.85441858,218.32,218.25,8.85441858]
[1731749308917,4.5806,218.31,218.25,8.85441858]
[1731749309215,4.5806,218.31,218.23,22.788]
[1731749309216,8.85441858,218.3,218.23,22.788]
[1731749309524,8.85441858,218.28,218.23,22.788]
[1731749309696,24.5806,218.31,218.23,22.788]
[1731749309900,8.85441858,218.3,218.23,22.788]
[1731749310315,8.85441858,218.29,218.23,22.788]
[1731749310616,8.85441858,218.28,218.23,22.788]
[1731749311215,13.43571858,218.28,218.23,22.788]
[1731749312624,4.5808,218.3,218.23,22.788]
[1731749312823,8.85441858,218.28,218.23,22.788]
[1731749313513,8.85441858,218.29,218.23,22.788]
[1731749313708,4.5812,218.28,218.23,22.788]
[1731749314631,8.85441858,218.29,218.23,22.788]
[1731749314922,4.5811,218.29,218.23,22.788]
[1731749315102,13.43551858,218.29,218.23,22.788]
[1731749315720,4.5811,218.29,218.23,22.788]
[1731749316908,15.99656514,218.33,218.25,8.85441858]
[1731749317112,8.85441858,218.33,218.26,23.776884]
[1731749317622,4.5803,218.33,218.26,8.85441858]
[1731749317804,4.5803,218.33,218.27,23.776884]
[1731749318409,4.5803,218.33,218.26,13.43591858]
[1731749318610,8.85441858,218.34,218.27,8.85441858]
[1731749318809,20.57646514,218.35,218.27,8.85441858]
[1731749319511,8.85441858,218.33,218.26,4.5815]
[1731749319704,8.85441858,218.33,218.26,13.43591858]
[1731749320019,13.43461858,218.34,218.26,13.43591858]
[1731749322531,8.85441858,218.33,218.26,13.43591858]
[1731749323022,8.85441858,218.29,218.23,34.2438]
[1731749323428,8.85441858,218.29,218.23,38.8261]
[1731749324011,8.85441858,218.3,218.23,47.68051858]
[1731749325907,13.43521858,218.3,218.23,47.68051858]
[1731749326122,13.43521858,218.3,218.23,38.8261]
[1731749326335,8.85441858,218.29,218.23,38.8261]
[1731749326702,8.85441858,218.27,218.23,22.788]
[1731749326907,8.85441858,218.26,218.23,22.788]
[1731749327527,8.85441858,218.27,218.23,22.788]
[1731749328924,4.5814,218.28,218.23,22.788]
[1731749329227,13.43581858,218.28,218.23,22.788]
[1731749329738,8.85441858,218.26,218.23,22.788]
[1731749329935,8.85441858,218.24,218.23,22.788]
[1731749330132,8.85441858,218.26,218.23,22.788]
[1731749331633,13.43621858,218.26,218.23,16.5815]
[1731749332323,8.85441858,218.25,218.23,16.5815]
[1731749333125,13.43641858,218.25,218.23,16.5815]
[1731749334640,7.14214656,218.28,218.23,16.5815]
[1731749334848,20.57766514,218.29,218.23,21.1637]
[1731749335015,4.5811,218.29,218.23,30.01811858]
[1731749335214,11.72324656,218.29,218.23,30.01811858]
[1731749336222,11.72324656,218.29,218.23,25.43591858]
[1731749337017,20.57766514,218.29,218.23,16.5815]
[1731749337218,15.99656514,218.28,218.23,16.5815]
[1731749338040,18.86539313,218.29,218.23,16.5815]
[1731749338041,15.99656514,218.27,218.23,16.5815]
[1731749338421,8.85441858,218.27,218.23,16.5815]
[1731749339025,7.14214656,218.27,218.23,16.5815]
[1731749341620,11.72364656,218.27,218.23,16.5815]
[1731749341821,7.14214656,218.27,218.23,16.5815]
[1731749345235,11.72364656,218.27,218.23,16.5815]
[1731749345437,20.57806514,218.27,218.23,16.5815]
[1731749348547,20.57806514,218.27,218.19,15.38571858]
[1731749348870,20.57806514,218.27,218.19,11.1143]
[1731749349441,11.72364656,218.27,218.19,22.5722]
[1731749349635,11.72364656,218.27,218.2,8.85441858]
[1731749350726,11.72364656,218.27,218.19,22.5722]
[1731749350928,11.72364656,218.27,218.2,8.85441858]
[1731749352458,11.72364656,218.27,218.19,22.5722]
[1731749352641,20.57836514,218.26,218.19,6.5313]
[1731749352847,8.85441858,218.23,218.19,6.5313]
[1731749353065,8.85441858,218.21,218.18,16.0725]